[Event "Late-Titled-Tuesday-Blitz-November-28-2023"]
[Site "Chess.com"]
[Date "2023.11.28"]
[Round "9"]
[White "noblerone"]
[Black "Sacbutt"]
[Result "1-0"]
[WhiteElo "2483"]
[BlackElo "2346"]
[TimeControl "180+1"]
[EndTime "15:42:16 PST"]
[Termination "noblerone won on time"]

1. d4 {[%clk 0:02:56.6]} 1... Nf6 {[%clk 0:02:58.2]} 2. c4 {[%clk 0:02:56.6]}
2... e6 {[%clk 0:02:58.1]} 3. Nc3 {[%clk 0:02:56.6]} 3... Bb4 {[%clk 0:02:55.5]}
4. Qb3 {[%clk 0:02:53.1]} 4... c5 {[%clk 0:02:52]} 5. dxc5 {[%clk 0:02:50.8]}
5... Bxc5 {[%clk 0:02:47.9]} 6. Nf3 {[%clk 0:02:48.8]} 6... Nc6 {[%clk
0:02:44.2]} 7. Bg5 {[%clk 0:02:43.2]} 7... O-O {[%clk 0:02:33.7]} 8. e3 {[%clk
0:02:42.2]} 8... b6 {[%clk 0:02:20.2]} 9. Be2 {[%clk 0:02:35.2]} 9... h6 {[%clk
0:02:18.9]} 10. Bh4 {[%clk 0:02:26.8]} 10... Be7 {[%clk 0:02:13.5]} 11. O-O
{[%clk 0:02:22.6]} 11... d6 {[%clk 0:02:12.2]} 12. Rfd1 {[%clk 0:02:16.7]} 12...
a6 {[%clk 0:01:48.7]} 13. Rac1 {[%clk 0:01:57.2]} 13... Bb7 {[%clk 0:01:34]} 14.
Qc2 {[%clk 0:01:53]} 14... Qc7 {[%clk 0:01:27.5]} 15. b3 {[%clk 0:01:49.1]}
15... Rac8 {[%clk 0:01:23.9]} 16. h3 {[%clk 0:01:45.9]} 16... Rfd8 {[%clk
0:01:22.2]} 17. Bg3 {[%clk 0:01:44.8]} 17... Ne5 {[%clk 0:01:17.4]} 18. Nxe5
{[%clk 0:01:42.6]} 18... dxe5 {[%clk 0:01:18.3]} 19. Qb2 {[%clk 0:01:25.2]}
19... Bb4 {[%clk 0:00:42]} 20. a3 {[%clk 0:00:47]} 20... Rxd1+ {[%clk
0:00:39.7]} 21. Rxd1 {[%clk 0:00:31.2]} 21... Bxc3 {[%clk 0:00:33.2]} 22. Qxc3
{[%clk 0:00:31.1]} 22... Ne4 {[%clk 0:00:30.7]} 23. Qxe5 {[%clk 0:00:27.4]}
23... Nxg3 {[%clk 0:00:26.9]} 24. Qxg3 {[%clk 0:00:22]} 24... Qxg3 {[%clk
0:00:25.9]} 25. fxg3 {[%clk 0:00:22.9]} 25... Bc6 {[%clk 0:00:20.4]} 26. Bf3
{[%clk 0:00:18.9]} 26... Kf8 {[%clk 0:00:18.1]} 27. Bxc6 {[%clk 0:00:16.8]}
27... Rxc6 {[%clk 0:00:19]} 28. Rd8+ {[%clk 0:00:15.7]} 28... Ke7 {[%clk
0:00:18.8]} 29. Rb8 {[%clk 0:00:16.1]} 29... a5 {[%clk 0:00:15]} 30. Kf2 {[%clk
0:00:12.1]} 30... h5 {[%clk 0:00:15.2]} 31. Kf3 {[%clk 0:00:11.2]} 31... g6
{[%clk 0:00:15.8]} 32. b4 {[%clk 0:00:09]} 32... axb4 {[%clk 0:00:15.8]} 33.
axb4 {[%clk 0:00:09.9]} 33... Kf6 {[%clk 0:00:12.1]} 34. b5 {[%clk 0:00:08.9]}
34... Rxc4 {[%clk 0:00:09.3]} 35. Rxb6 {[%clk 0:00:09.4]} 35... Rb4 {[%clk
0:00:08.7]} 36. Rb7 {[%clk 0:00:09]} 36... Rb2 {[%clk 0:00:07.8]} 37. g4 {[%clk
0:00:08.7]} 37... h4 {[%clk 0:00:04.1]} 38. g3 {[%clk 0:00:07.2]} 38... hxg3
{[%clk 0:00:01.8]} 39. Kxg3 {[%clk 0:00:07]} 39... Rb1 {[%clk 0:00:02.7]} 40. h4
{[%clk 0:00:05.8]} 40... Rb3 {[%clk 0:00:03.2]} 41. Kf4 {[%clk 0:00:05]} 41...
Rb4+ {[%clk 0:00:03.7]} 42. Kf3 {[%clk 0:00:05.3]} 42... Rb3 {[%clk 0:00:04.2]}
43. g5+ {[%clk 0:00:05.5]} 43... Kg7 {[%clk 0:00:04.6]} 44. Kg3 {[%clk
0:00:04.2]} 44... Rb4 {[%clk 0:00:05]} 45. b6 {[%clk 0:00:03.4]} 45... Rb3
{[%clk 0:00:05.4]} 46. Kf3 {[%clk 0:00:03.4]} 46... Rb4 {[%clk 0:00:05.8]} 47.
Rb8 {[%clk 0:00:03.7]} 47... Rxh4 {[%clk 0:00:05.9]} 48. Rc8 {[%clk 0:00:03.8]}
48... Rb4 {[%clk 0:00:05.9]} 49. Rc6 {[%clk 0:00:04.4]} 49... Rb3 {[%clk
0:00:06]} 50. Ke2 {[%clk 0:00:04.4]} 50... Rb4 {[%clk 0:00:06.5]} 51. Kd3 {[%clk
0:00:04.3]} 51... Rb5 {[%clk 0:00:07.1]} 52. Kc4 {[%clk 0:00:04.6]} 52... Rb1
{[%clk 0:00:06.7]} 53. Kc5 {[%clk 0:00:05.1]} 53... Kf8 {[%clk 0:00:05.3]} 54.
Kd6 {[%clk 0:00:05.1]} 54... Rd1+ {[%clk 0:00:04.4]} 55. Kc7 {[%clk 0:00:05.5]}
55... Ke7 {[%clk 0:00:04.6]} 56. b7 {[%clk 0:00:05.8]} 56... Rb1 {[%clk
0:00:04.2]} 57. b8=Q {[%clk 0:00:05.7]} 1-0

[Event "Late-Titled-Tuesday-Blitz-November-28-2023"]
[Site "Chess.com"]
[Date "2023.11.28"]
[Round "9"]
[White "SanchezKelvin"]
[Black "GoltsevDmitry2000"]
[Result "0-1"]
[WhiteElo "2536"]
[BlackElo "2683"]
[TimeControl "180+1"]
[EndTime "15:42:17 PST"]
[Termination "GoltsevDmitry2000 won on time"]

1. e4 {[%clk 0:03:00.9]} 1... e6 {[%clk 0:02:58.3]} 2. d4 {[%clk 0:03:00.1]}
2... d5 {[%clk 0:02:59.2]} 3. Nd2 {[%clk 0:02:59.1]} 3... c5 {[%clk 0:02:58.4]}
4. exd5 {[%clk 0:02:58.8]} 4... exd5 {[%clk 0:02:59.3]} 5. Ngf3 {[%clk
0:02:58.6]} 5... Nf6 {[%clk 0:02:57.6]} 6. Bb5+ {[%clk 0:02:59.1]} 6... Nc6
{[%clk 0:02:58.1]} 7. O-O {[%clk 0:02:58.2]} 7... Be7 {[%clk 0:02:58.5]} 8. dxc5
{[%clk 0:02:58.2]} 8... Bxc5 {[%clk 0:02:59]} 9. Re1+ {[%clk 0:02:54.8]} 9...
Be6 {[%clk 0:02:58.1]} 10. Nb3 {[%clk 0:02:52.2]} 10... Bb6 {[%clk 0:02:57.4]}
11. Nfd4 {[%clk 0:02:50.8]} 11... O-O {[%clk 0:02:57.6]} 12. Bg5 {[%clk
0:02:38.3]} 12... Bd7 {[%clk 0:02:52.4]} 13. a4 {[%clk 0:02:28.1]} 13... a6
{[%clk 0:02:45.3]} 14. Bxc6 {[%clk 0:02:26.3]} 14... bxc6 {[%clk 0:02:45.2]} 15.
a5 {[%clk 0:02:23.5]} 15... Bc7 {[%clk 0:02:44.7]} 16. Nc5 {[%clk 0:02:17.4]}
16... Bc8 {[%clk 0:02:22.6]} 17. Nd3 {[%clk 0:02:10.4]} 17... h6 {[%clk
0:02:14.6]} 18. Bh4 {[%clk 0:02:09.1]} 18... Bd7 {[%clk 0:02:07.4]} 19. Nc5
{[%clk 0:02:01.9]} 19... Bc8 {[%clk 0:02:05.1]} 20. b4 {[%clk 0:01:54.1]} 20...
Kh8 {[%clk 0:01:26.1]} 21. Qf3 {[%clk 0:01:27.3]} 21... g5 {[%clk 0:01:05.5]}
22. Nxc6 {[%clk 0:01:04.9]} 22... Qd6 {[%clk 0:01:04]} 23. Bg3 {[%clk
0:01:04.5]} 23... Qxc6 {[%clk 0:01:02]} 24. Bxc7 {[%clk 0:01:04.3]} 24... Bg4
{[%clk 0:01:02.3]} 25. Qc3 {[%clk 0:00:58.3]} 25... Kg8 {[%clk 0:00:55.6]} 26.
Be5 {[%clk 0:00:54.1]} 26... Nd7 {[%clk 0:00:49.6]} 27. Bd4 {[%clk 0:00:42.3]}
27... Nxc5 {[%clk 0:00:47.2]} 28. Qxc5 {[%clk 0:00:39.3]} 28... Qxc5 {[%clk
0:00:42.6]} 29. Bxc5 {[%clk 0:00:38.7]} 29... Rfe8 {[%clk 0:00:42.9]} 30. f3
{[%clk 0:00:39.1]} 30... Bf5 {[%clk 0:00:42.3]} 31. c3 {[%clk 0:00:39.4]} 31...
Bd3 {[%clk 0:00:41.5]} 32. Kf2 {[%clk 0:00:39.2]} 32... Bc4 {[%clk 0:00:41.2]}
33. Bd4 {[%clk 0:00:34.2]} 33... Kh7 {[%clk 0:00:39.8]} 34. g4 {[%clk
0:00:34.1]} 34... Kg6 {[%clk 0:00:39.6]} 35. Rad1 {[%clk 0:00:33]} 35... f5
{[%clk 0:00:39.5]} 36. gxf5+ {[%clk 0:00:31.8]} 36... Kxf5 {[%clk 0:00:40.4]}
37. h3 {[%clk 0:00:30.4]} 37... Kg6 {[%clk 0:00:36.7]} 38. Be5 {[%clk
0:00:26.7]} 38... Re6 {[%clk 0:00:32.1]} 39. Bd4 {[%clk 0:00:20.1]} 39... Rae8
{[%clk 0:00:31.1]} 40. Rxe6+ {[%clk 0:00:20.5]} 40... Rxe6 {[%clk 0:00:32]} 41.
Re1 {[%clk 0:00:20.1]} 41... Rxe1 {[%clk 0:00:31.6]} 42. Kxe1 {[%clk 0:00:21]}
42... Kf5 {[%clk 0:00:19.1]} 43. Kf2 {[%clk 0:00:20.9]} 43... Kf4 {[%clk
0:00:19.2]} 44. Bf6 {[%clk 0:00:16.5]} 44... Bb5 {[%clk 0:00:17.9]} 45. Bd8
{[%clk 0:00:15.3]} 45... Bd7 {[%clk 0:00:12.9]} 46. h4 {[%clk 0:00:13.9]} 46...
gxh4 {[%clk 0:00:09.8]} 47. Bxh4 {[%clk 0:00:13.6]} 47... h5 {[%clk 0:00:10.7]}
48. Bg3+ {[%clk 0:00:12.8]} 48... Kf5 {[%clk 0:00:10]} 49. Ke3 {[%clk
0:00:12.7]} 49... Bb5 {[%clk 0:00:07.3]} 50. Kd4 {[%clk 0:00:11.6]} 50... Bc4
{[%clk 0:00:07.8]} 51. Bc7 {[%clk 0:00:08.7]} 51... h4 {[%clk 0:00:07]} 52. Kc5
{[%clk 0:00:06.4]} 52... h3 {[%clk 0:00:06.4]} 53. b5 {[%clk 0:00:03]} 53...
Bxb5 {[%clk 0:00:06.4]} 54. Kxd5 {[%clk 0:00:02.4]} 54... Be2 {[%clk 0:00:07.3]}
0-1

[Event "Late-Titled-Tuesday-Blitz-November-28-2023"]
[Site "Chess.com"]
[Date "2023.11.28"]
[Round "9"]
[White "sansanathalia"]
[Black "Alexei_Gubajdullin"]
[Result "0-1"]
[WhiteElo "2239"]
[BlackElo "2638"]
[TimeControl "180+1"]
[EndTime "15:42:17 PST"]
[Termination "Alexei_Gubajdullin won on time"]

1. d4 {[%clk 0:03:00.9]} 1... Nf6 {[%clk 0:02:01.8]} 2. Bg5 {[%clk 0:02:56.7]}
2... Ne4 {[%clk 0:02:00.7]} 3. Bf4 {[%clk 0:02:55.7]} 3... d5 {[%clk 0:02:00.4]}
4. f3 {[%clk 0:02:47.8]} 4... Nd6 {[%clk 0:02:00.3]} 5. Nc3 {[%clk 0:02:39.4]}
5... Nc4 {[%clk 0:01:54.2]} 6. b3 {[%clk 0:02:36.1]} 6... e5 {[%clk 0:01:52]} 7.
bxc4 {[%clk 0:02:04.7]} 7... exf4 {[%clk 0:01:51.4]} 8. Nxd5 {[%clk 0:02:03.9]}
8... c6 {[%clk 0:01:42.6]} 9. Nxf4 {[%clk 0:01:58.9]} 9... Bb4+ {[%clk
0:01:41.8]} 10. Kf2 {[%clk 0:01:57]} 10... Bc3 {[%clk 0:01:41.5]} 11. Rb1 {[%clk
0:01:55.6]} 11... Bxd4+ {[%clk 0:01:29.8]} 12. e3 {[%clk 0:01:52.3]} 12... Bb6
{[%clk 0:01:23.5]} 13. Qxd8+ {[%clk 0:01:49.9]} 13... Bxd8 {[%clk 0:01:23.2]}
14. Bd3 {[%clk 0:01:50.3]} 14... Na6 {[%clk 0:01:21.9]} 15. Nge2 {[%clk
0:01:48.2]} 15... Nc5 {[%clk 0:01:21.4]} 16. h4 {[%clk 0:01:47.4]} 16... h5
{[%clk 0:01:17.6]} 17. Nd4 {[%clk 0:01:44.4]} 17... g6 {[%clk 0:01:17.4]} 18. g3
{[%clk 0:01:33.7]} 18... Bf6 {[%clk 0:01:16.2]} 19. Be2 {[%clk 0:01:23.8]} 19...
Ke7 {[%clk 0:01:10.6]} 20. Rhd1 {[%clk 0:01:21.4]} 20... Rd8 {[%clk 0:01:09.4]}
21. c3 {[%clk 0:01:17.9]} 21... Na4 {[%clk 0:01:06.8]} 22. Rbc1 {[%clk
0:01:11.1]} 22... Bd7 {[%clk 0:01:02.9]} 23. Rd2 {[%clk 0:01:07.2]} 23... Be8
{[%clk 0:01:02.3]} 24. Bd1 {[%clk 0:01:04.9]} 24... c5 {[%clk 0:00:55.6]} 25.
Nb3 {[%clk 0:00:33.4]} 25... Rxd2+ {[%clk 0:00:51.9]} 26. Nxd2 {[%clk
0:00:31.9]} 26... Nb6 {[%clk 0:00:44]} 27. Nd5+ {[%clk 0:00:31.5]} 27... Nxd5
{[%clk 0:00:43.9]} 28. cxd5 {[%clk 0:00:32.4]} 28... b5 {[%clk 0:00:41.9]} 29.
c4 {[%clk 0:00:24.7]} 29... b4 {[%clk 0:00:40.2]} 30. Ne4 {[%clk 0:00:24.6]}
30... Rc8 {[%clk 0:00:37.5]} 31. d6+ {[%clk 0:00:17.7]} 31... Ke6 {[%clk
0:00:37.2]} 32. Bc2 {[%clk 0:00:17.9]} 32... Bd8 {[%clk 0:00:35.7]} 33. Rd1
{[%clk 0:00:17.5]} 33... f5 {[%clk 0:00:30.2]} 34. Nd2 {[%clk 0:00:15.7]} 34...
Kxd6 {[%clk 0:00:27.5]} 35. Ne4+ {[%clk 0:00:14.7]} 35... Ke7 {[%clk 0:00:27.3]}
36. Nd6 {[%clk 0:00:14.6]} 36... Rb8 {[%clk 0:00:25.7]} 37. e4 {[%clk
0:00:11.4]} 37... fxe4 {[%clk 0:00:18.6]} 38. fxe4 {[%clk 0:00:10.9]} 38... Bc6
{[%clk 0:00:17.8]} 39. e5 {[%clk 0:00:11.1]} 39... Ke6 {[%clk 0:00:16.9]} 40.
Bxg6 {[%clk 0:00:11.6]} 40... Be7 {[%clk 0:00:16.1]} 41. Bxh5 {[%clk 0:00:09.5]}
41... Kxe5 {[%clk 0:00:16.1]} 42. Nf5 {[%clk 0:00:08]} 42... Kxf5 {[%clk
0:00:15.7]} 43. Be2 {[%clk 0:00:06.7]} 43... Bf6 {[%clk 0:00:15.4]} 44. g4+
{[%clk 0:00:05.7]} 44... Ke6 {[%clk 0:00:15.4]} 45. g5 {[%clk 0:00:05.8]} 45...
Bd4+ {[%clk 0:00:15.9]} 46. Kg3 {[%clk 0:00:05.7]} 46... Be5+ {[%clk 0:00:16.2]}
47. Kg4 {[%clk 0:00:06.2]} 47... Rf8 {[%clk 0:00:16.7]} 48. Rf1 {[%clk
0:00:04.2]} 48... Rxf1 {[%clk 0:00:13.7]} 49. Bxf1 {[%clk 0:00:05.1]} 49... a5
{[%clk 0:00:12.7]} 50. Bd3 {[%clk 0:00:05.3]} 50... a4 {[%clk 0:00:12.6]} 51.
Bc2 {[%clk 0:00:05.9]} 51... b3 {[%clk 0:00:11.2]} 52. axb3 {[%clk 0:00:05.3]}
52... a3 {[%clk 0:00:11.5]} 53. Bb1 {[%clk 0:00:05.9]} 53... Be4 {[%clk
0:00:11.8]} 54. Ba2 {[%clk 0:00:03.6]} 54... Bf5+ {[%clk 0:00:11.7]} 55. Kh5
{[%clk 0:00:03.6]} 55... Kf7 {[%clk 0:00:11.3]} 56. Kh6 {[%clk 0:00:02.8]} 56...
Bg6 {[%clk 0:00:10.6]} 0-1

[Event "Late-Titled-Tuesday-Blitz-November-28-2023"]
[Site "Chess.com"]
[Date "2023.11.28"]
[Round "9"]
[White "NikolasTheiss"]
[Black "Chessbard1972"]
[Result "1-0"]
[WhiteElo "2550"]
[BlackElo "2394"]
[TimeControl "180+1"]
[EndTime "15:42:18 PST"]
[Termination "NikolasTheiss won on time"]

1. e4 {[%clk 0:02:34.8]} 1... c5 {[%clk 0:02:59]} 2. Nc3 {[%clk 0:02:33.6]} 2...
a6 {[%clk 0:02:58.5]} 3. a4 {[%clk 0:02:32.6]} 3... Nc6 {[%clk 0:02:58.1]} 4. f4
{[%clk 0:02:33.1]} 4... e6 {[%clk 0:02:57.7]} 5. Nf3 {[%clk 0:02:33.5]} 5... d5
{[%clk 0:02:56.9]} 6. d3 {[%clk 0:02:33]} 6... Nf6 {[%clk 0:02:56.1]} 7. Qe2
{[%clk 0:02:28.6]} 7... Be7 {[%clk 0:02:55.5]} 8. h3 {[%clk 0:02:28.7]} 8... Nd4
{[%clk 0:02:51.4]} 9. Nxd4 {[%clk 0:02:28.5]} 9... cxd4 {[%clk 0:02:51.8]} 10.
Nd1 {[%clk 0:02:29.1]} 10... dxe4 {[%clk 0:02:50.9]} 11. dxe4 {[%clk 0:02:30]}
11... O-O {[%clk 0:02:49.2]} 12. Nf2 {[%clk 0:02:23.2]} 12... b6 {[%clk
0:02:31.2]} 13. g3 {[%clk 0:02:22.1]} 13... Bb7 {[%clk 0:02:31]} 14. Bg2 {[%clk
0:02:22.6]} 14... Rc8 {[%clk 0:02:29.3]} 15. O-O {[%clk 0:02:09.6]} 15... Qc7
{[%clk 0:02:28.1]} 16. e5 {[%clk 0:02:10.1]} 16... Bxg2 {[%clk 0:02:11.3]} 17.
Kxg2 {[%clk 0:02:11]} 17... Qc6+ {[%clk 0:02:07.4]} 18. Kh2 {[%clk 0:01:42.3]}
18... Nd5 {[%clk 0:02:04.7]} 19. Qxa6 {[%clk 0:01:33.9]} 19... Qxc2 {[%clk
0:02:02]} 20. Qd3 {[%clk 0:01:34.4]} 20... Nb4 {[%clk 0:01:49.9]} 21. Qd1 {[%clk
0:01:09.6]} 21... Rfd8 {[%clk 0:01:38]} 22. Bd2 {[%clk 0:01:07.7]} 22... Qxb2
{[%clk 0:01:06.3]} 23. Rb1 {[%clk 0:01:02.7]} 23... Qa3 {[%clk 0:01:04]} 24. Rb3
{[%clk 0:01:01.7]} 24... Qxa4 {[%clk 0:01:03.8]} 25. Rxb4 {[%clk 0:01:02]} 25...
Qxd1 {[%clk 0:00:58.8]} 26. Rxd1 {[%clk 0:01:02.9]} 26... Bxb4 {[%clk
0:00:58.1]} 27. Bxb4 {[%clk 0:01:03.8]} 27... Rc2 {[%clk 0:00:57.4]} 28. Kg2
{[%clk 0:00:49.4]} 28... Rb2 {[%clk 0:00:50.5]} 29. Bd6 {[%clk 0:00:49]} 29...
Rc8 {[%clk 0:00:46]} 30. Kf3 {[%clk 0:00:40.6]} 30... Rc3+ {[%clk 0:00:43.2]}
31. Nd3 {[%clk 0:00:35.5]} 31... f6 {[%clk 0:00:38.9]} 32. Ke4 {[%clk
0:00:30.6]} 32... Rc4 {[%clk 0:00:30]} 33. Kf3 {[%clk 0:00:06.9]} 33... f5
{[%clk 0:00:29.1]} 34. g4 {[%clk 0:00:06.2]} 34... g6 {[%clk 0:00:28.3]} 35.
gxf5 {[%clk 0:00:06.3]} 35... gxf5 {[%clk 0:00:27.9]} 36. Kg3 {[%clk 0:00:07]}
36... Rb3 {[%clk 0:00:26]} 37. Kh4 {[%clk 0:00:07.1]} 37... h6 {[%clk
0:00:23.8]} 38. Kh5 {[%clk 0:00:06.7]} 38... Kf7 {[%clk 0:00:20.6]} 39. Kxh6
{[%clk 0:00:06]} 39... Rcc3 {[%clk 0:00:20.3]} 40. Nf2 {[%clk 0:00:05.8]} 40...
Rf3 {[%clk 0:00:19.9]} 41. Rd2 {[%clk 0:00:06.2]} 41... b5 {[%clk 0:00:16.7]}
42. Kg5 {[%clk 0:00:06.5]} 42... Rg3+ {[%clk 0:00:15.8]} 43. Kh4 {[%clk
0:00:07.1]} 43... Rgf3 {[%clk 0:00:13.3]} 44. Rc2 {[%clk 0:00:07.6]} 44... Rxf4+
{[%clk 0:00:12.6]} 45. Kg5 {[%clk 0:00:08.3]} 45... Rff3 {[%clk 0:00:10.8]} 46.
Rc7+ {[%clk 0:00:08.7]} 46... Ke8 {[%clk 0:00:11.2]} 47. Kf6 {[%clk 0:00:09]}
47... Rxf2 {[%clk 0:00:08.1]} 48. Rc8+ {[%clk 0:00:08.9]} 48... Kd7 {[%clk
0:00:08.4]} 49. Rc7+ {[%clk 0:00:09.6]} 49... Kd8 {[%clk 0:00:08.8]} 50. Kxe6
{[%clk 0:00:09.9]} 50... Rc3 {[%clk 0:00:08.2]} 51. Rb7 {[%clk 0:00:09.3]} 51...
d3 {[%clk 0:00:06.3]} 52. Rb8+ {[%clk 0:00:09.1]} 52... Rc8 {[%clk 0:00:06.4]}
53. Rxb5 {[%clk 0:00:09.6]} 53... d2 {[%clk 0:00:06.1]} 54. Rb1 {[%clk
0:00:09.3]} 54... Re2 {[%clk 0:00:04.5]} 55. Be7+ {[%clk 0:00:09.8]} 55... Kc7
{[%clk 0:00:04]} 56. Rd1 {[%clk 0:00:10.7]} 56... Kb7 {[%clk 0:00:03.4]} 57. Bd6
{[%clk 0:00:11.6]} 57... Rc1 {[%clk 0:00:03.1]} 58. Rxd2 {[%clk 0:00:11.5]}
58... Rxd2 {[%clk 0:00:03.2]} 59. Kxf5 {[%clk 0:00:12.4]} 59... Rh2 {[%clk
0:00:03]} 60. Kg4 {[%clk 0:00:12.4]} 60... Rg2+ {[%clk 0:00:03]} 61. Kh4 {[%clk
0:00:13]} 61... Rgc2 {[%clk 0:00:03.6]} 62. e6 {[%clk 0:00:13.6]} 62... Re2
{[%clk 0:00:01.5]} 63. e7 {[%clk 0:00:14.5]} 1-0

[Event "Late-Titled-Tuesday-Blitz-November-28-2023"]
[Site "Chess.com"]
[Date "2023.11.28"]
[Round "9"]
[White "GHANDEEVAM2003"]
[Black "K_A_S_T_O_R"]
[Result "1-0"]
[WhiteElo "3122"]
[BlackElo "2897"]
[TimeControl "180+1"]
[EndTime "15:42:34 PST"]
[Termination "GHANDEEVAM2003 won by resignation"]

1. b3 {[%clk 0:03:00.9]} 1... d5 {[%clk 0:02:54.7]} 2. e3 {[%clk 0:03:01.1]}
2... Nf6 {[%clk 0:02:48.1]} 3. Bb2 {[%clk 0:03:01.6]} 3... Bf5 {[%clk
0:02:48.1]} 4. Nf3 {[%clk 0:02:58.5]} 4... e6 {[%clk 0:02:46.5]} 5. Nh4 {[%clk
0:02:57.5]} 5... Bg4 {[%clk 0:02:39.3]} 6. Be2 {[%clk 0:02:57.6]} 6... Bxe2
{[%clk 0:02:38.9]} 7. Qxe2 {[%clk 0:02:58.5]} 7... c6 {[%clk 0:02:38.4]} 8. O-O
{[%clk 0:02:57.6]} 8... Nbd7 {[%clk 0:02:39]} 9. d3 {[%clk 0:02:57.7]} 9... Bd6
{[%clk 0:02:38.8]} 10. f4 {[%clk 0:02:57.5]} 10... O-O {[%clk 0:02:38.1]} 11.
Nd2 {[%clk 0:02:57.9]} 11... Qc7 {[%clk 0:02:38.2]} 12. g4 {[%clk 0:02:55.7]}
12... g6 {[%clk 0:02:24.2]} 13. Kh1 {[%clk 0:02:49.4]} 13... e5 {[%clk
0:02:18.1]} 14. f5 {[%clk 0:02:37]} 14... g5 {[%clk 0:02:15.1]} 15. Nhf3 {[%clk
0:02:36.8]} 15... h6 {[%clk 0:02:14.8]} 16. e4 {[%clk 0:02:36.9]} 16... d4
{[%clk 0:02:08.3]} 17. h4 {[%clk 0:02:33]} 17... Nh7 {[%clk 0:02:08.2]} 18. Kg2
{[%clk 0:02:31.1]} 18... f6 {[%clk 0:02:06.7]} 19. Rh1 {[%clk 0:02:30.4]} 19...
Kg7 {[%clk 0:02:05.7]} 20. Nf1 {[%clk 0:02:27.6]} 20... Rh8 {[%clk 0:02:05.4]}
21. Ng3 {[%clk 0:02:27.5]} 21... Rag8 {[%clk 0:02:06]} 22. Rh3 {[%clk
0:02:26.4]} 22... gxh4 {[%clk 0:01:56.9]} 23. Nxh4 {[%clk 0:02:23.3]} 23... Ng5
{[%clk 0:01:56.9]} 24. Rh2 {[%clk 0:02:22.9]} 24... Nf8 {[%clk 0:01:57]} 25.
Rah1 {[%clk 0:02:20.7]} 25... Kf7 {[%clk 0:01:55.8]} 26. Bc1 {[%clk 0:02:19.1]}
26... Ke8 {[%clk 0:01:55.9]} 27. Nf3 {[%clk 0:02:16.8]} 27... Nf7 {[%clk
0:01:53.1]} 28. Rh4 {[%clk 0:02:14.1]} 28... Be7 {[%clk 0:01:49.4]} 29. a4
{[%clk 0:02:04]} 29... Kd8 {[%clk 0:01:49.1]} 30. Ng1 {[%clk 0:01:59.7]} 30...
Qa5 {[%clk 0:01:43.3]} 31. Bxh6 {[%clk 0:01:58.1]} 31... Nxh6 {[%clk 0:01:40.4]}
32. Rxh6 {[%clk 0:01:59]} 32... Rxh6 {[%clk 0:01:40.6]} 33. Rxh6 {[%clk
0:01:59.9]} 33... Qc3 {[%clk 0:01:38.4]} 34. Nh3 {[%clk 0:01:59.8]} 34... Qa1
{[%clk 0:01:33.3]} 35. g5 {[%clk 0:01:53.5]} 35... Qc1 {[%clk 0:01:28.4]} 36.
Qf2 {[%clk 0:01:42.1]} 36... Nd7 {[%clk 0:01:24.5]} 37. Rg6 {[%clk 0:01:41.6]}
37... Rh8 {[%clk 0:01:21.7]} 38. gxf6 {[%clk 0:01:39.2]} 38... Bxf6 {[%clk
0:01:21.8]} 39. Ng1 {[%clk 0:01:30.9]} 39... Ke7 {[%clk 0:01:20.4]} 40. Nf3
{[%clk 0:01:27.6]} 40... Nf8 {[%clk 0:01:17.8]} 41. Rg4 {[%clk 0:01:25.3]} 41...
Nd7 {[%clk 0:01:16.5]} 42. Ng1 {[%clk 0:01:11.6]} 42... b5 {[%clk 0:01:16]} 43.
Nf1 {[%clk 0:01:06.4]} 43... bxa4 {[%clk 0:01:10]} 44. bxa4 {[%clk 0:01:07.3]}
44... Nc5 {[%clk 0:01:10.4]} 45. a5 {[%clk 0:01:00.4]} 45... Na4 {[%clk
0:01:09.1]} 46. Rg3 {[%clk 0:00:55.9]} 46... Nc3 {[%clk 0:01:08.6]} 47. Rh3
{[%clk 0:00:55.9]} 47... Rxh3 {[%clk 0:00:59.8]} 48. Kxh3 {[%clk 0:00:45.9]}
48... Qa3 {[%clk 0:00:55.5]} 49. Nf3 {[%clk 0:00:42.3]} 49... Qxa5 {[%clk
0:00:54.8]} 50. Qg3 {[%clk 0:00:42.8]} 50... Ne2 {[%clk 0:00:52.7]} 51. Qg8
{[%clk 0:00:38.5]} 51... Nf4+ {[%clk 0:00:52.7]} 52. Kg4 {[%clk 0:00:33.5]}
52... Qc5 {[%clk 0:00:48.4]} 53. Ng5 {[%clk 0:00:21]} 53... Bxg5 {[%clk
0:00:43.3]} 54. Qxg5+ {[%clk 0:00:21.9]} 54... Kd7 {[%clk 0:00:40.9]} 55. f6
{[%clk 0:00:22.3]} 55... Ke6 {[%clk 0:00:36.8]} 56. Qg7 {[%clk 0:00:16.3]} 56...
Qd6 {[%clk 0:00:13.5]} 57. f7 {[%clk 0:00:15]} 57... Qe7 {[%clk 0:00:07.6]} 58.
f8=Q {[%clk 0:00:13.6]} 1-0